lending/lending_fUSD_20260317
["ID","MTS","AMOUNT","RATE_DAILY","PERIOD"]
[408480969,1773725443549,-161.116037,0.00015087,2]
[408480970,1773725443558,-1319.21296274,0.00015137,2]
[408480971,1773725443568,-200.0,0.00015137,2]
[408480972,1773725443577,-200.0,0.00015137,2]
[408480973,1773725443587,-463.68635794,0.00015149,2]
[408480974,1773725443596,-470.033544,0.00015205,2]
[408480975,1773725443609,-587.0,0.00015206,2]
[408480976,1773725443619,-330.565193,0.00015217,7]
[408480977,1773725443629,-216.0,0.00015222,2]
[408480978,1773725443639,-150.0,0.00015222,2]
[408480979,1773725443649,-293.336,0.00015222,2]
[408480980,1773725443658,-172.423,0.00015222,2]
[408480981,1773725443668,-150.086,0.00015222,2]
[408480982,1773725443678,-150.0,0.00015222,2]
[408480983,1773725443687,-150.044,0.00015222,2]
[408480984,1773725443697,-150.0,0.00015222,2]
[408480985,1773725443708,-150.0,0.00015222,2]
[408480986,1773725443717,-150.0,0.00015222,2]
[408480987,1773725443727,-150.0,0.00015222,2]
[408480988,1773725443736,-442.63,0.00015239,2]
[408480989,1773725443745,-153.08,0.00015272,2]
[408480990,1773725443754,-203.70118588,0.00015273,2]
[408480991,1773725443763,-338.22903938,0.00015273,2]
[408480992,1773725443772,-501.10703136,0.00015273,2]
[408480993,1773725443782,-493.83375351,0.00015273,2]
[408480994,1773725443791,-505.60698159,0.00015273,2]
[408480995,1773725443800,-501.45819966,0.00015273,2]
[408480996,1773725443810,-598.10473156,0.00015273,2]
[408480997,1773725443819,-170.90888333,0.00015273,2]
[408480998,1773725443828,-500.0,0.00015273,2]
[408480999,1773725443838,-441.31038381,0.00015273,2]
[408481000,1773725443847,-500.0,0.00015273,2]
[408481001,1773725443857,-310.27363011,0.00015273,2]
[408481002,1773725443866,-2351.0,0.00015287,2]
[408481003,1773725443876,-200.0,0.00015288,2]
[408481004,1773725443888,-200.0,0.00015288,2]
[408481005,1773725443898,-155.0,0.00015289,2]
[408481006,1773725443907,-161.116037,0.0001529,2]
[408481007,1773725443916,-161.116037,0.0001529,2]
[408481008,1773725443927,-161.116037,0.0001529,2]
[408481009,1773725443936,-161.116037,0.0001529,2]
[408481010,1773725443945,-282.18035,0.0001529,2]
[408481011,1773725443955,-282.18035,0.0001529,2]
[408481012,1773725443964,-282.18035,0.0001529,2]
[408481013,1773725443973,-282.18035,0.0001529,2]
[408481014,1773725443982,-11291.0539371,0.00015296,2]
[408481015,1773725443991,-160.0,0.00015343,7]
[408481016,1773725444000,-234.358228,0.00015343,7]
[408481017,1773725444009,-308.716456,0.00015343,7]
[408481018,1773725444019,-442.63,0.00015366,2]
[408481019,1773725444028,-154.16583981,0.00015395,2]
[408481020,1773725444037,-1000.0,0.00015421,2]
[408481021,1773725444046,-186.97253884,0.00015441,2]
[408481022,1773725444055,-151.79240683,0.00015441,2]
[408481023,1773725444064,-200.0000009,0.00015441,2]
[408481024,1773725444073,-200.0,0.00015441,2]
[408481025,1773725444082,-200.0,0.00015441,2]
[408481026,1773725444091,-333.33333,0.00015441,2]
[408481027,1773725444101,-333.33334,0.00015441,2]
[408481028,1773725444110,-333.33333,0.00015441,2]
[408481029,1773725444119,-333.33334,0.00015441,2]
[408481030,1773725444128,-333.33333,0.00015441,2]
[408481031,1773725444137,-333.33333,0.00015441,2]
[408481032,1773725444147,-166.66,0.00015463,2]
[408481033,1773725444156,-442.63,0.00015505,2]
[408481034,1773725444164,-4000.0,0.00015507,2]
[408481035,1773725444173,-5186.85117323,0.00015528,2]
[408481036,1773725444182,-500.0,0.00015528,2]
[408481037,1773725444191,-500.0,0.00015528,2]
[408481038,1773725444200,-500.0,0.00015528,2]
[408481039,1773725444209,-250.0,0.00015528,2]
[408481040,1773725444218,-249.15761797,0.00015528,2]
[408481041,1773725444227,-250.0,0.00015528,2]
[408481042,1773725444236,-250.0,0.00015528,2]
[408481043,1773725444245,-250.0,0.00015528,2]
[408481044,1773725444255,-750.0,0.00015528,2]
[408481045,1773725444263,-250.0,0.00015528,2]
[408481046,1773725444272,-250.0,0.00015528,2]
[408481047,1773725444282,-750.0,0.00015528,2]
[408481048,1773725444291,-500.0,0.00015528,2]
[408481049,1773725444300,-500.0,0.00015528,2]
[408481050,1773725444309,-250.0,0.00015528,2]
[408481051,1773725444318,-750.0,0.00015528,2]
[408481052,1773725444327,-500.0,0.00015528,2]
[408481053,1773725444337,-500.0,0.00015528,2]
[408481054,1773725444346,-250.0,0.00015528,2]
[408481055,1773725444356,-750.0,0.00015528,2]
[408481056,1773725444365,-534.48592052,0.00015528,2]
[408481057,1773725444374,-250.0,0.00015528,2]
[408481058,1773725444383,-750.0,0.00015528,2]
[408481059,1773725444392,-500.0,0.00015528,2]
[408481060,1773725444407,-250.0,0.00015528,2]
[408481061,1773725444429,-750.0,0.00015528,2]
[408481062,1773725444446,-500.0,0.00015528,2]
[408481063,1773725444457,-276.33319812,0.00015528,2]
[408481064,1773725444466,-750.0,0.00015528,2]
[408481065,1773725444477,-500.0,0.00015528,2]
[408481066,1773725444488,-500.0,0.00015528,2]
[408481067,1773725444498,-750.0,0.00015528,2]
[408481068,1773725444508,-750.0,0.00015528,2]
[408481069,1773725444519,-500.0,0.00015528,2]
[408481070,1773725444530,-750.0,0.00015528,2]
[408481071,1773725444539,-500.0,0.00015528,2]
[408481072,1773725444550,-250.0,0.00015528,2]
[408481073,1773725444559,-750.0,0.00015528,2]
[408481074,1773725444569,-500.0,0.00015528,2]
[408481075,1773725444580,-250.0,0.00015528,2]
[408481076,1773725444589,-750.0,0.00015528,2]
[408481077,1773725444599,-500.0,0.00015528,2]
[408481078,1773725444609,-250.0,0.00015528,2]
[408481079,1773725444618,-750.0,0.00015528,2]
[408481080,1773725444628,-500.0,0.00015528,2]
[408481081,1773725444637,-265.71968937,0.00015528,2]
[408481082,1773725444647,-250.0,0.00015528,2]
[408481083,1773725444656,-500.0,0.00015528,2]
[408481084,1773725444665,-250.0,0.00015528,2]
[408481085,1773725444675,-282.48816514,0.00015528,2]
[408481086,1773725444684,-250.0,0.00015528,2]
[408481087,1773725444694,-250.0,0.00015528,2]
[408481088,1773725444703,-250.0,0.00015528,2]
[408481089,1773725444713,-151.0,0.00015528,2]
[408481090,1773725444723,-151.0,0.00015528,2]
[408481091,1773725444733,-250.0,0.00015528,2]
[408481092,1773725444743,-156.587,0.00015528,2]
[408481093,1773725444752,-250.0,0.00015528,2]
[408481094,1773725444762,-193.9920317,0.00015528,2]
[408481095,1773725444772,-269.00463473,0.00015528,2]
[408481096,1773725444781,-500.0,0.00015528,2]
[408481097,1773725444791,-500.0,0.00015528,2]
[408481098,1773725444800,-500.0,0.00015528,2]
[408481099,1773725444810,-500.0,0.00015528,2]
[408481100,1773725444820,-500.0,0.00015528,2]
[408481101,1773725444829,-500.0,0.00015528,2]
[408481102,1773725444839,-500.0,0.00015528,2]
[408481103,1773725444848,-500.0,0.00015528,2]
[408481104,1773725444858,-500.0,0.00015528,2]
[408481105,1773725444867,-500.0,0.00015528,2]
[408481106,1773725444876,-260.4103811,0.00015528,2]
[408481107,1773725444887,-566.02454488,0.00015528,2]
[408481108,1773725444898,-2000.0,0.00015544,2]
[408481109,1773725444907,-500.0,0.00015583,2]
[408481110,1773725444924,-169.57265412,0.00015583,2]
[408481111,1773725444943,-200.0,0.00015596,2]
[408481112,1773725444954,-442.65949591,0.00015608,2]
[408481113,1773725444967,-500.0,0.00015638,2]
[408481114,1773725444977,-6618.07740552,0.00015656,2]
[408481115,1773725444987,-2519.3746732,0.00015685,2]
[408481116,1773725444998,-500.0,0.00015693,2]
[408481117,1773725445007,-1342.0,0.00015709,5]
[408481118,1773725445017,-500.0,0.00015748,2]
[408481119,1773725445027,-350.0,0.00015752,2]
[408481120,1773725445038,-2086.6,0.00015753,2]
[408481121,1773725445047,-500.0,0.00015803,2]
[408481122,1773725445056,-3357.72361294,0.00015818,2]
[408481123,1773725445067,-10669.66342107,0.00015819,2]
[408481124,1773725445077,-1000.0,0.00015821,2]
[408481125,1773725445088,-445.01502629,0.00015821,2]
[408481126,1773725445099,-500.0,0.00015858,2]
[408481127,1773725445108,-2000.0,0.0001589,2]
[408481128,1773725445119,-4000.0,0.00015895,2]
[408481129,1773725445129,-150.33717718,0.000159,2]
[408481132,1773725445139,-150.0,0.000159,2]
[408481133,1773725445148,-2000.0,0.00015904,2]
[408481134,1773725445159,-1600.0,0.00015917,2]
[408481135,1773725445169,-161.0,0.00015924,2]
[408481136,1773725445179,-505.33275983,0.00015968,2]
[408481137,1773725445189,-162.98932947,0.00016,14]
[408481139,1773725445199,-1271.767747,0.00016,2]
[408481140,1773725445209,-533.0,0.00016,2]
[408481141,1773725445219,-270.0455652,0.00016076,2]
[408481142,1773725445229,-2500.0,0.00016092,2]
[408481143,1773725445239,-153.08,0.00016121,2]
[408481144,1773725445250,-3852.495829,0.00016124,2]
[408481145,1773725445260,-12893.85608496,0.000162,5]
[408481147,1773725445270,-2000.0,0.00016233,2]
[408481150,1773725445280,-240.13,0.00016278,2]
[408481151,1773725445289,-4000.0,0.00016282,2]
[408481153,1773725445299,-463.68635794,0.00016337,2]
[408481154,1773725445309,-460.17826058,0.00016337,2]
[408481155,1773725445318,-736.0,0.00016339,2]
[408481156,1773725445328,-1100.0,0.00016356,2]
[408481157,1773725445337,-1200.0,0.00016356,2]
[408481158,1773725445346,-232.87985869,0.00016356,2]
[408481159,1773725445363,-267.12014131,0.00016356,2]
[408481160,1773725445372,-241.79481394,0.00016368,2]
[408481161,1773725445382,-155.23053666,0.00016377,2]
[408481162,1773725445394,-743.86,0.00016377,2]
[408481163,1773725445407,-3100.0,0.00016377,2]
[408481164,1773725445673,-500.0,0.00013961,2]
[408481165,1773725445684,-151.0,0.00015821,2]
[408481166,1773725445693,-1330.0,0.00016368,5]
[408481167,1773725445704,-2618.98686886,0.00016377,2]
[408481168,1773725445715,-7389.56,0.00016438,2]
[408481169,1773725445726,-500.0,0.00016438,2]
[408481170,1773725445737,-251.00000703,0.00016438,2]
[408481171,1773725445748,-2086.6,0.00016438,2]
[408481172,1773725445763,-182.02,0.00016438,2]
[408481173,1773725445774,-155.361375,0.00016438,2]
[408481174,1773725445784,-155.361375,0.00016438,2]
[408481175,1773725445795,-155.361375,0.00016438,2]
[408481176,1773725445806,-155.361375,0.00016438,2]
[408481177,1773725445815,-151.0,0.00016438,2]
[408481178,1773725445827,-179.97574806,0.00016438,2]
[408481179,1773725445837,-151.0,0.00016438,2]
[408481180,1773725445962,-151.0,0.00016438,2]
[408481181,1773725445972,-151.0,0.00016438,2]
[408481182,1773725445980,-151.0,0.00016438,2]
[408481183,1773725445989,-151.0,0.00016438,2]
[408481184,1773725445998,-151.0,0.00016438,2]
[408481185,1773725446007,-153.8,0.00016579,2]
[408481186,1773725446016,-10669.66342107,0.0001658,2]
[408481187,1773725446025,-871.0,0.0001661,2]
[408481188,1773725446034,-2400.0,0.00016621,2]
[408481189,1773725446043,-280.03725112,0.00016624,2]
[408481190,1773725446051,-1010.95905411,0.0001664,2]
[408481191,1773725446060,-4000.0,0.0001667,2]
[408481192,1773725446069,-823.0,0.00016682,2]
[408481193,1773725446079,-786.91,0.00016684,2]
[408481194,1773725446088,-859.6080113,0.00016697,2]
[408481195,1773725446096,-1544.0,0.0001671,5]
[408481196,1773725446106,-166.88,0.00016712,2]
[408481197,1773725446115,-3292.0,0.00016815,2]
[408481198,1773725446124,-155.0,0.00016818,2]
[408481199,1773725446133,-217.58010915,0.00016823,2]
[408481200,1773725446142,-3357.72361294,0.00016839,2]
[408481201,1773725446151,-518.0,0.00016842,5]
[408481202,1773725446160,-3400.0,0.000169,6]
[408481203,1773725446169,-161.0,0.00016941,2]
[408481204,1773725446179,-153.08,0.00016969,2]
[408481205,1773725446188,-209.68687591,0.0001699,2]
[408481206,1773725446197,-319.15926432,0.00016999,2]
[408481207,1773725446206,-239.16710553,0.00016999,2]
[408481208,1773725446215,-300.0,0.00016999,2]
[408481209,1773725446224,-300.0,0.00016999,2]
[408481210,1773725446233,-116441.5579018,0.00017,5]
[408481211,1773725446244,-281.680004,0.00017,5]
[408481212,1773725446255,-572.01969778,0.00017,5]
[408481213,1773725446265,-1893.12,0.00017,5]
[408481214,1773725446317,-259.0739561,0.00017,5]
[408481231,1773726631463,-159.37,0.00012106,2]
[408481232,1773726631473,-145.1659988,0.00013333,2]
[408481233,1773726631524,-372.8340012,0.00013333,2]
[408481234,1773726631534,-500.0,0.00013698,2]
[408481235,1773726631544,-1000.0,0.00014497,2]
[408481236,1773726631553,-166.66,0.00014665,2]
[408481237,1773726631562,-929.37600956,0.00014933,2]
[408481238,1773726631571,-166.66,0.00014973,2]
[408481239,1773726631580,-300.0,0.00014999,2]
[408481240,1773726631590,-300.0,0.00014999,2]
[408481241,1773726631599,-1200.0,0.00014999,2]
[408481242,1773726631609,-250.0,0.00015,2]
[408481243,1773726631618,-29596.04055469,0.00015,7]
[408481244,1773726631627,-205.29,0.00015079,2]
[408481245,1773726631636,-185.0,0.00015191,2]
[408481246,1773726631645,-162.0,0.00015238,2]
[408481247,1773726631655,-166.66,0.00015282,2]
[408481248,1773726631664,-500.0,0.00015288,2]
[408481249,1773726631674,-283.6455,0.00015316,2]
[408481250,1773726631683,-300.0,0.00015405,2]
[408481251,1773726631692,-750.0,0.00015406,2]
[408481252,1773726631701,-750.0,0.00015406,2]
[408481253,1773726631711,-750.0,0.00015406,2]
[408481254,1773726631721,-750.0,0.00015406,2]
[408481255,1773726631730,-750.0,0.00015406,2]
[408481256,1773726631739,-750.0,0.00015406,2]
[408481257,1773726631749,-151.0,0.00015406,2]
[408481259,1773726631758,-151.0,0.00015406,2]
[408481261,1773726631767,-750.0,0.00015406,2]
[408481263,1773726631776,-151.0,0.00015406,2]
[408481265,1773726631785,-750.0,0.00015406,2]
[408481267,1773726631795,-151.0,0.00015406,2]
[408481269,1773726631804,-151.0,0.00015406,2]
[408481271,1773726631813,-151.0,0.00015406,2]
[408481273,1773726631823,-151.0,0.00015406,2]
[408481275,1773726631833,-750.0,0.00015406,2]
[408481277,1773726631842,-151.0,0.00015406,2]
[408481279,1773726631851,-237.65579626,0.00015406,2]
[408481281,1773726631860,-271.78857239,0.00015406,2]
[408481283,1773726631869,-1044.0,0.00015416,2]
[408481285,1773726631878,-1344.0,0.00015416,2]
[408481287,1773726631888,-620.0,0.00015416,2]
[408481289,1773726631898,-3511.0,0.00015416,2]
[408481291,1773726631908,-1260.0,0.00015416,2]
[408481293,1773726631918,-1214.0,0.00015416,2]
[408481295,1773726631927,-923.0,0.00015416,2]
[408481297,1773726631937,-414.0,0.00015416,2]
[408481299,1773726631946,-4847.9195822,0.00015416,2]
[408481302,1773726631958,-1156.0804178,0.00015416,2]
[408481304,1773726631967,-2577.42,0.00015436,2]
[408481306,1773726631977,-1227.16,0.00015436,2]
[408481308,1773726631990,-3240.0,0.00015436,2]
[408481310,1773726632001,-4000.0,0.00015507,2]
[408481312,1773726632011,-166.66,0.00015591,2]
[408481313,1773726632020,-2400.0,0.00015886,2]
[408481315,1773726632030,-4000.0,0.00015895,2]
[408481316,1773726632039,-166.66,0.00015899,2]
[408481317,1773726632048,-2400.0,0.00015953,2]
[408481318,1773726632058,-4267.8653685,0.00016016,2]
[408481319,1773726632068,-9999.99,0.00016116,2]
[408481320,1773726632077,-150.99,0.00016116,2]
[408481321,1773726632086,-6084.06325838,0.00016116,2]
[408481322,1773726632100,-1642.68977316,0.00016116,2]
[408481326,1773726637660,-2273.23696846,0.00016116,2]
[408481327,1773726637669,-15171.79303152,0.00016116,2]
[408481329,1773726637772,-1616.51255343,0.00016116,2]
[408481330,1773726637783,-3940.38414795,0.00016116,2]
[408481334,1773726640238,-1072.2002671,0.00016116,2]
[408481335,1773726640249,-130.34700383,0.00016116,2]
[408481341,1773726644766,-2465.0,0.00015416,2]
[408481342,1773726644776,-1906.09,0.00015846,2]
[408481343,1773726644786,-869.64299617,0.00016116,2]
[408481344,1773726644796,-299.99,0.00016116,4]
[408481345,1773726644804,-5560.39139542,0.00016116,2]
[408481346,1773726644989,-4439.59860458,0.00016116,2]
[408481347,1773726644998,-3430.85,0.00016116,2]
[408481348,1773726645009,-3466.19,0.00016116,2]
[408481349,1773726645019,-9999.99,0.00016116,2]
[408481350,1773726645028,-499.99,0.00016116,2]
[408481351,1773726645037,-319.38,0.00016116,2]
[408481352,1773726645047,-150.99,0.00016116,2]
[408481353,1773726645055,-9999.99,0.00016116,2]
[408481354,1773726645064,-2689.751,0.00016135,2]
[408481355,1773726645073,-161.568,0.00016135,2]
[408481356,1773726645082,-166.66,0.00016208,2]
[408481357,1773726645091,-4000.0,0.00016282,2]
[408481358,1773726645100,-500.0,0.00016356,2]
[408481359,1773726645109,-1100.0,0.00016356,2]
[408481360,1773726645118,-1200.0,0.00016356,2]
[408481361,1773726645128,-3866.62,0.000164,2]
[408481362,1773726645141,-4267.86536842,0.00016448,2]
[408481363,1773726645150,-1680.0,0.00016499,2]
[408481364,1773726645159,-510.0,0.0001653,2]
[408481365,1773726645168,-400.0,0.000166,6]
[408481366,1773726645177,-1035.09798198,0.0001666,2]
[408481367,1773726645186,-1062.41313297,0.0001666,2]
[408481373,1773726645351,-1084.90212698,0.0001666,2]
[408481375,1773726645360,-1079.54557902,0.0001666,2]
[408481377,1773726645370,-1112.8964947,0.0001666,2]
[408481379,1773726645380,-1037.16863305,0.0001666,2]
[408481381,1773726645389,-1072.36625283,0.0001666,2]
[408481382,1773726645398,-1012.63210498,0.0001666,2]
[408481383,1773726645408,-1113.60666385,0.0001666,2]
[408481384,1773726645417,-1137.142105,0.0001666,2]
[408481385,1773726645426,-1583.09176814,0.0001666,2]
[408481386,1773726645436,-4000.0,0.0001667,2]
[408481387,1773726645445,-2500.0,0.0001669,2]
[408481388,1773726645455,-900.0,0.000167,6]
[408481389,1773726645464,-1259.14635487,0.000167,2]
[408481390,1773726645473,-2647.23096228,0.0001679,2]
[408481391,1773726645482,-98992.90580579,0.000168,2]
[408481392,1773726645519,-202.99016,0.000168,2]
[408481393,1773726645546,-8989.00788809,0.000168,2]
[408481394,1773726645769,-3689.95,0.000168,2]
[408481395,1773726645782,-2299.0,0.000168,2]
[408481401,1773727159481,173.77,7.37e-05,2]
[408481405,1773727410676,306.0,0.00012,5]
[408481408,1773727666401,-231.0,9.826e-05,2]
[408481409,1773727700130,-169.0,9.826e-05,2]
[408481414,1773727831634,-231.0,9.826e-05,2]
[408481415,1773727831643,-4.77,9.826e-05,2]
[408481416,1773727831654,-173.77,0.00012283,2]
[408481417,1773727831664,-332.7518,0.00013333,2]
[408481418,1773727831675,-185.2482,0.00013333,2]
[408481419,1773727831684,-214.61,0.00013753,2]
[408481420,1773727831693,-742.2918,0.00014277,2]
[408481421,1773727831702,-181.0,0.00014349,2]
[408481422,1773727831712,-421.0,0.00014436,2]
[408481423,1773727831721,-211.0675011,0.00014639,2]
[408481424,1773727831730,-173.77,0.00014739,2]
[408481425,1773727831740,-227.16078224,0.0001479,2]
[408481426,1773727831749,-300.0,0.00014799,2]
[408481427,1773727831758,-1200.0,0.00014799,2]
[408481428,1773727831767,-122683.95316356,0.000148,2]
[408481429,1773727831778,-58484.50700963,0.000148,2]
[408481430,1773727831789,-50747.21282953,0.000148,2]
[408481431,1773727831800,-18427.25720702,0.000148,2]
[408481435,1773727837728,-500.0,0.00014799,2]
[408481436,1773727837738,-184.3640625,0.00014799,2]
[408481437,1773727837747,-154.43622043,0.00014799,2]
[408481438,1773727837756,-500.0,0.00014799,2]
[408481439,1773727837766,-500.0,0.00014799,2]
[408481440,1773727837776,-500.0,0.00014799,2]
[408481441,1773727837786,-500.0,0.00014799,2]
[408481442,1773727837796,-500.0,0.00014799,2]
[408481443,1773727837806,-500.0,0.00014799,2]
[408481444,1773727837816,-500.0,0.00014799,2]
[408481445,1773727837825,-88440.24423869,0.000148,2]
[408481446,1773727837895,-1245.55648852,0.000148,2]
[408481457,1773727839940,-522.9232407,0.000148,2]
[408481458,1773727839951,-2544.08497981,0.000148,2]
[408481459,1773727839962,-509.65562623,0.000148,2]
[408481460,1773727840212,-322.7914305,0.000148,2]
[408481462,1773727840548,-28984.9370734,0.000148,2]
[408481463,1773727840564,-1822.94734818,0.000148,2]
[408481468,1773727842821,-9580.97694113,0.000148,2]
[408481469,1773727842832,-3878.63871613,0.000148,2]
[408481470,1773727842878,-313589.6622033,0.000148,2]
[408481471,1773727842889,-651.8421,0.000148,2]
[408481472,1773727843042,-11193.98515637,0.000148,2]
[408481479,1773727845618,-1703.55588657,0.000148,2]
[408481593,1773729031807,-927.65,0.00011507,2]
[408481594,1773729031818,-1937.18771931,0.00012658,2]
[408481595,1773729031828,-231.32082853,0.00012658,2]
[408481596,1773729031839,-166.66,0.00013068,2]
[408481597,1773729031850,-500.0,0.00013233,2]
[408481598,1773729031860,-518.0,0.00013333,2]
[408481599,1773729031871,-166.66,0.00013343,2]
[408481600,1773729031881,-552.52827757,0.000135,2]
[408481601,1773729031902,-2687.47172243,0.000135,2]
[408481602,1773729031912,-166.66,0.00013618,2]
[408481603,1773729031929,-300.0,0.00013645,2]
[408481604,1773729031938,-1164.98951583,0.00013645,2]
[408481605,1773729031950,-35.01048417,0.00013645,2]
[408481606,1773729031960,-3302.05,0.00013646,2]
[408481607,1773729031971,-202.08,0.00013664,2]
[408481608,1773729031981,-166.66,0.00013894,2]
[408481609,1773729031993,-237.18,0.00014153,2]
[408481610,1773729032004,-166.66,0.00014169,2]
[408481611,1773729032014,-154.68,0.00014253,2]
[408481613,1773729032023,-2000.0,0.00014269,2]
[408481615,1773729032032,-1101.75306052,0.00014344,2]
[408481617,1773729032042,-150.0,0.00014399,2]
[408481619,1773729032051,-52256.50940459,0.000144,2]
[408481621,1773729032062,-37423.36867467,0.000144,2]
[408481623,1773729032073,-28411.23590786,0.000144,2]
[408481626,1773729032092,-2673.03763375,0.000144,2]
[408481628,1773729032102,-392.0164969,0.000144,2]
[408481630,1773729032113,-390.37271931,0.000144,2]
[408481631,1773729032124,-54283.66039352,0.000144,2]
[408481632,1773729032157,-3994.67917432,0.000144,2]
[408481633,1773729032168,-534.06656813,0.000144,2]
[408481634,1773729032179,-2171.79258427,0.000144,2]
[408481636,1773729038032,-447.30038089,0.000144,2]
[408481637,1773729038089,-475.2949715,0.000144,2]
[408481638,1773729038100,-10872.26460037,0.000144,2]
[408481642,1773729040500,-845.39777926,0.000144,2]
[408481649,1773729043043,-11268.23550823,0.000144,2]
[408481652,1773729045781,-741.68,0.000144,2]
[408481653,1773729045844,-525.568331,0.000144,2]
[408481654,1773729045902,-515.642885,0.000144,2]
[408481655,1773729045967,-902.4970347,0.000144,2]
[408481660,1773729855780,179.36,6.615e-05,2]
[408481661,1773729855972,179.36,6.963e-05,2]
[408481662,1773729856173,179.36,7.311e-05,2]
[408481663,1773729856385,179.36,7.659e-05,2]
[408481664,1773729856595,179.36,8.007e-05,2]
[408481665,1773729857012,179.36,8.355e-05,2]
[408481666,1773729857218,179.36,8.704e-05,2]
[408481667,1773729857464,179.36,9.052e-05,2]
[408481668,1773729857671,179.36,9.4e-05,2]
[408481669,1773730232067,-179.36,9.748e-05,2]
[408481670,1773730232079,-230.0,9.748e-05,2]
[408481671,1773730232090,-260.77651821,9.874e-05,2]
[408481672,1773730232101,-243.73822231,0.0001,2]
[408481673,1773730232111,-179.36,0.00010096,2]
[408481674,1773730232121,-179.36,0.00010444,2]
[408481675,1773730232130,-250.0,0.00010723,2]
[408481676,1773730232139,-250.0,0.00010723,2]
[408481677,1773730232148,-179.36,0.00010792,2]
[408481678,1773730232158,-160.6429396,0.00011041,2]
[408481679,1773730232168,-179.36,0.0001114,2]
[408481680,1773730232178,-179.36,0.00011489,2]
[408481681,1773730232188,-1524.0,0.00011836,2]
[408481682,1773730232197,-179.36,0.00011837,2]
[408481683,1773730232209,-126.33824943,0.00012101,2]
[408481684,1773730232223,-507.104,0.00012101,2]
[408481685,1773730232235,-795.55775057,0.00012101,2]
[408481686,1773730232245,-271.0,0.00012101,2]
[408481687,1773730232255,-1200.0,0.00012124,2]
[408481688,1773730232265,-395.0,0.00012125,2]
[408481689,1773730232274,-179.36,0.00012185,2]
[408481691,1773730232284,-185.15,0.00012251,2]
[408481693,1773730232293,-179.36,0.00012533,2]
[408481695,1773730232303,-243.73822231,0.00012533,2]
[408481697,1773730232312,-150.0,0.00012545,2]
[408481699,1773730232323,-189.74,0.00012618,2]
[408481701,1773730232332,-300.0,0.00012732,2]
[408481703,1773730232341,-1081.0,0.00012733,2]
[408481706,1773730232350,-380.0,0.00012795,2]
[408481708,1773730232359,-243.73822231,0.00012795,2]
[408481710,1773730232369,-179.36,0.00012881,2]
[408481712,1773730232378,-179.36,0.00013229,2]
[408481714,1773730232387,-500.0,0.00013233,2]
[408481717,1773730232396,-518.0,0.00013333,2]
[408481720,1773730232405,-1680.0,0.00013336,2]
[408481722,1773730232415,-300.0,0.00013425,2]
[408481724,1773730232424,-1600.0,0.00013426,2]
[408481726,1773730232434,-7413.9,0.00013426,2]
[408481728,1773730232444,-1906.09,0.00013517,2]
[408481730,1773730232453,-150.0,0.0001352,2]
[408481731,1773730232463,-241.9187691,0.0001352,2]
[408481734,1773730232472,-500.0,0.00013544,2]
[408481736,1773730232481,-6668.31,0.00013544,2]
[408481738,1773730232491,-9607.87244464,0.00013551,2]
[408481739,1773730232501,-1852.42,0.00013561,2]
[408481742,1773730232511,-2323.32,0.00013562,2]
[408481744,1773730232520,-200.0,0.00013699,2]
[408481745,1773730232530,-313.45,0.00013699,2]
[408481747,1773730232539,-875.7,0.00013699,2]
[408481749,1773730232549,-700.0,0.000137,5]